lending/lending_fUSD_20250224
["ID","MTS","AMOUNT","RATE_DAILY","PERIOD"]
[354252434,1740366656427,-368.329112,0.00016684,2]
[354252435,1740366656436,-703.84,0.00016684,2]
[354252436,1740366656445,-1326.67,0.00016684,2]
[354252437,1740366656455,-1102.09,0.00016684,2]
[354252438,1740366656465,-637.61,0.00016684,2]
[354252439,1740366656475,-500.0,0.00016684,2]
[354252440,1740366656484,-500.0,0.00016684,2]
[354252441,1740366656493,-500.0,0.00016684,2]
[354252442,1740366656502,-500.0,0.00016684,2]
[354252443,1740366656512,-1076.63,0.00016684,2]
[354252444,1740366656522,-518.19,0.00016684,2]
[354252445,1740366656531,-1256.73,0.00016684,2]
[354252446,1740366656540,-500.0,0.00016684,2]
[354252447,1740366656549,-857.2,0.00016684,2]
[354252448,1740366656558,-1977.42,0.00016684,2]
[354252449,1740366656568,-695.33,0.00016684,2]
[354252450,1740366656578,-500.0,0.00016684,2]
[354252451,1740366656588,-500.0,0.00016684,2]
[354252452,1740366656597,-500.0,0.00016684,2]
[354252453,1740366656607,-1243.07,0.00016684,2]
[354252454,1740366656617,-1572.56,0.00016684,2]
[354252455,1740366656626,-500.0,0.00016684,2]
[354252456,1740366656635,-280.91049968,0.00016684,2]
[354252457,1740366656644,-825.96,0.00016684,2]
[354252458,1740366656653,-772.57,0.00016684,2]
[354252459,1740366656666,-646.87,0.00016684,2]
[354252460,1740366656676,-1653.55,0.00016684,2]
[354252461,1740366656686,-500.0,0.00016684,2]
[354252462,1740366656696,-536.30152437,0.00016684,2]
[354252463,1740366656705,-655.33,0.00016684,2]
[354252464,1740366656716,-904.62,0.00016684,2]
[354252465,1740366656726,-500.0,0.00016684,2]
[354252466,1740366656736,-540.53,0.00016684,2]
[354252467,1740366656745,-907.46,0.00016684,2]
[354252468,1740366656755,-500.0,0.00016684,2]
[354252469,1740366656764,-689.41,0.00016684,2]
[354252470,1740366656775,-1163.27,0.00016684,2]
[354252471,1740366656785,-850.46,0.00016684,2]
[354252472,1740366656794,-741.83,0.00016684,2]
[354252473,1740366656804,-500.0,0.00016684,2]
[354252474,1740366656814,-500.0,0.00016684,2]
[354252475,1740366657382,-500.0,0.00016684,2]
[354252476,1740366657403,-1183.42,0.00016684,2]
[354252477,1740366657420,-1540.66,0.00016684,2]
[354252478,1740366657430,-500.0,0.00016684,2]
[354252479,1740366657440,-661.88,0.00016684,2]
[354252480,1740366657449,-589.01,0.00016684,2]
[354252481,1740366657458,-502.19,0.00016684,2]
[354252482,1740366657467,-909.33,0.00016684,2]
[354252483,1740366657477,-500.0,0.00016684,2]
[354252484,1740366657486,-535.42,0.00016684,2]
[354252485,1740366657496,-500.0,0.00016684,2]
[354252486,1740366657505,-500.0,0.00016684,2]
[354252487,1740366657515,-500.0,0.00016684,2]
[354252488,1740366657525,-540.74,0.00016684,2]
[354252489,1740366657535,-608.68,0.00016684,2]
[354252490,1740366657544,-500.0,0.00016684,2]
[354252491,1740366657553,-826.65,0.00016684,2]
[354252492,1740366657563,-500.0,0.00016684,2]
[354252493,1740366657572,-866.19,0.00016684,2]
[354252494,1740366657581,-697.22,0.00016684,2]
[354252495,1740366657591,-500.0,0.00016684,2]
[354252496,1740366657600,-1077.81,0.00016684,2]
[354252497,1740366657609,-671.25,0.00016684,2]
[354252498,1740366657618,-708.23,0.00016684,2]
[354252499,1740366657627,-500.0,0.00016684,2]
[354252500,1740366657636,-500.0,0.00016684,2]
[354252501,1740366657645,-500.0,0.00016684,2]
[354252502,1740366657654,-958.02,0.00016684,2]
[354252503,1740366657664,-500.0,0.00016684,2]
[354252504,1740366657674,-500.0,0.00016684,2]
[354252505,1740366657683,-627.02,0.00016684,2]
[354252506,1740366657693,-500.0,0.00016684,2]
[354252507,1740366657702,-500.0,0.00016684,2]
[354252508,1740366657712,-666.11,0.00016684,2]
[354252509,1740366657721,-910.46,0.00016684,2]
[354252510,1740366657730,-1019.37,0.00016684,2]
[354252511,1740366657739,-500.0,0.00016684,2]
[354252512,1740366657748,-500.0,0.00016684,2]
[354252513,1740366657757,-312.01357885,0.00016684,2]
[354252514,1740366657767,-500.0,0.00016684,2]
[354252515,1740366657776,-1000.64,0.00016684,2]
[354252516,1740366657785,-559.96,0.00016684,2]
[354252517,1740366657794,-1012.09,0.00016684,2]
[354252518,1740366657803,-500.0,0.00016684,2]
[354252519,1740366657813,-655.95,0.00016684,2]
[354252520,1740366657822,-570.74,0.00016684,2]
[354252521,1740366657832,-628.93,0.00016684,2]
[354252522,1740366657842,-540.97,0.00016684,2]
[354252523,1740366657852,-500.0,0.00016684,2]
[354252524,1740366657864,-644.53,0.00016684,2]
[354252525,1740366657873,-500.0,0.00016684,2]
[354252526,1740366657882,-500.0,0.00016684,2]
[354252527,1740366657891,-500.0,0.00016684,2]
[354252528,1740366657903,-862.28,0.00016684,2]
[354252529,1740366657912,-866.19,0.00016684,2]
[354252530,1740366657922,-160.60382155,0.00016684,2]
[354252531,1740366657932,-1118.32,0.00016684,2]
[354252532,1740366657942,-500.0,0.00016684,2]
[354252533,1740366657951,-1324.51,0.00016684,2]
[354252534,1740366657960,-500.0,0.00016684,2]
[354252535,1740366657969,-500.0,0.00016684,2]
[354252536,1740366657978,-1151.19,0.00016684,2]
[354252537,1740366657987,-500.0,0.00016684,2]
[354252538,1740366657998,-616.76,0.00016684,2]
[354252539,1740366658007,-500.0,0.00016684,2]
[354252540,1740366658016,-500.0,0.00016684,2]
[354252541,1740366658026,-540.13,0.00016684,2]
[354252542,1740366658035,-708.5,0.00016684,2]
[354252543,1740366658045,-524.5,0.00016684,2]
[354252544,1740366658054,-1754.71,0.00016684,2]
[354252545,1740366658063,-500.0,0.00016684,2]
[354252546,1740366658072,-500.0,0.00016684,2]
[354252547,1740366658081,-931.39,0.00016684,2]
[354252548,1740366658091,-607.68,0.00016684,2]
[354252549,1740366658100,-500.0,0.00016684,2]
[354252550,1740366658109,-1081.25,0.00016684,2]
[354252551,1740366658119,-572.2,0.00016684,2]
[354252552,1740366658128,-500.0,0.00016684,2]
[354252553,1740366658137,-500.0,0.00016684,2]
[354252554,1740366658146,-257.5227555,0.00016684,2]
[354252555,1740366658156,-958.32,0.00016684,2]
[354252556,1740366658167,-500.0,0.00016684,2]
[354252557,1740366658176,-909.66,0.00016684,2]
[354252558,1740366658185,-500.0,0.00016684,2]
[354252559,1740366658194,-503.12,0.00016684,2]
[354252560,1740366658202,-1791.83,0.00016684,2]
[354252561,1740366658211,-759.91,0.00016684,2]
[354252562,1740366658225,-500.0,0.00016684,2]
[354252563,1740366658234,-653.64,0.00016684,2]
[354252564,1740366658244,-893.6,0.00016684,2]
[354252565,1740366658253,-500.0,0.00016684,2]
[354252566,1740366658263,-510.24,0.00016684,2]
[354252567,1740366658272,-533.47,0.00016684,2]
[354252568,1740366658281,-500.0,0.00016684,2]
[354252569,1740366658290,-500.0,0.00016684,2]
[354252570,1740366658300,-506.77,0.00016684,2]
[354252571,1740366658309,-547.21,0.00016684,2]
[354252572,1740366658318,-1017.87,0.00016684,2]
[354252573,1740366658328,-527.81,0.00016684,2]
[354252574,1740366658338,-699.08,0.00016684,2]
[354252575,1740366658348,-500.0,0.00016684,2]
[354252576,1740366658357,-500.0,0.00016684,2]
[354252577,1740366658367,-1023.51,0.00016684,2]
[354252578,1740366658376,-500.0,0.00016684,2]
[354252579,1740366658385,-645.92,0.00016684,2]
[354252580,1740366658395,-500.0,0.00016684,2]
[354252581,1740366658404,-512.53,0.00016684,2]
[354252582,1740366658415,-500.0,0.00016684,2]
[354252583,1740366658425,-556.7,0.00016684,2]
[354252584,1740366658435,-504.85754097,0.00016684,2]
[354252585,1740366658445,-579.03753822,0.00016684,2]
[354252586,1740366658454,-536.9,0.00016684,2]
[354252587,1740366658464,-500.0,0.00016684,2]
[354252588,1740366658474,-500.0,0.00016684,2]
[354252589,1740366658484,-563.95,0.00016684,2]
[354252590,1740366658494,-1082.84,0.00016684,2]
[354252591,1740366658503,-500.0,0.00016684,2]
[354252592,1740366658513,-607.12,0.00016684,2]
[354252593,1740366658523,-500.0,0.00016684,2]
[354252594,1740366658534,-748.72,0.00016684,2]
[354252595,1740366658543,-647.02,0.00016684,2]
[354252596,1740366658553,-500.0,0.00016684,2]
[354252597,1740366658562,-500.0,0.00016684,2]
[354252598,1740366658571,-500.0,0.00016684,2]
[354252599,1740366658581,-500.0,0.00016684,2]
[354252600,1740366658590,-500.0,0.00016684,2]
[354252601,1740366658600,-1020.62,0.00016684,2]
[354252602,1740366658610,-500.0,0.00016684,2]
[354252603,1740366658620,-1169.52,0.00016684,2]
[354252604,1740366658631,-500.0,0.00016684,2]
[354252605,1740366658640,-623.86,0.00016684,2]
[354252606,1740366658649,-1394.64,0.00016684,2]
[354252607,1740366658660,-862.08,0.00016684,2]
[354252608,1740366658670,-996.54,0.00016684,2]
[354252609,1740366658680,-582.85,0.00016684,2]
[354252610,1740366658689,-2712.44,0.00016684,2]
[354252611,1740366658699,-500.0,0.00016684,2]
[354252612,1740366658709,-825.74,0.00016684,2]
[354252613,1740366658718,-682.15,0.00016684,2]
[354252614,1740366658728,-1223.63,0.00016684,2]
[354252615,1740366658738,-500.0,0.00016684,2]
[354252616,1740366658748,-2280.7,0.00016684,2]
[354252617,1740366658758,-1305.28,0.00016684,2]
[354252618,1740366658768,-581.92,0.00016684,2]
[354252619,1740366658778,-500.0,0.00016684,2]
[354252620,1740366658788,-500.0,0.00016684,2]
[354252621,1740366658797,-2377.92,0.00016684,2]
[354252622,1740366658807,-804.59,0.00016684,2]
[354252623,1740366658817,-4183.58,0.00016684,2]
[354252624,1740366658826,-635.61,0.00016684,2]
[354252625,1740366658836,-677.58,0.00016684,2]
[354252626,1740366658846,-1495.73764337,0.00016684,2]
[354252627,1740366658868,-363.67235663,0.00016684,2]
[354252628,1740366658878,-335.09833935,0.00016684,2]
[354252629,1740366658978,-164.90166065,0.00016684,2]
[354252630,1740366658987,-312.10985799,0.00016684,2]
[354252631,1740366658998,-187.89014201,0.00016684,2]
[354252632,1740366659008,-65.89264899,0.00016684,2]
[354252633,1740366659019,-254.62,0.00016684,2]
[354252635,1740366699040,175.06,8.767e-05,2]
[354252636,1740367254379,332.09,0.0002,120]
[354252652,1740367750505,204.09,8.767e-05,2]
[354252655,1740367806062,-300.0,9.999e-05,2]
[354252656,1740367806082,-9700.0,0.0001,2]
[354252657,1740367807572,-10000.0,0.0001,2]
[354252658,1740367808294,-10000.0,0.0001,2]
[354252659,1740367809047,-10000.0,0.0001,2]
[354252660,1740367809852,-10000.0,0.0001,2]
[354252661,1740367810915,-2372.07604036,0.0001,2]
[354252662,1740367810937,-7627.92395964,0.0001,2]
[354252663,1740367812977,-10000.0,0.0001,2]
[354252664,1740367813867,-10000.0,0.0001,2]
[354252665,1740367814822,-10000.0,0.0001,2]
[354252666,1740367830918,-5702.0,0.0001,2]
[354252679,1740367831750,-20659.0,0.0001,2]
[354252680,1740367831761,-626.07101274,0.0001,2]
[354252681,1740367831799,-1255.399995,0.0001,2]
[354252682,1740367831811,-648.12992617,0.0001,2]
[354252683,1740367831856,-294.54100083,0.0001,2]
[354252684,1740367831868,-4809.09,0.0001,2]
[354252685,1740367831879,-493.69246213,0.0001,2]
[354252686,1740367831963,-4215.26734399,0.0001,2]
[354252687,1740367831973,-181.23863571,0.0001,2]
[354252688,1740367831982,-460.065299,0.00010958,2]
[354252689,1740367831991,-453.402903,0.00010958,2]
[354252690,1740367832000,-159.980964,0.00010958,2]
[354252691,1740367832010,-270.553672,0.00010958,2]
[354252692,1740367832019,-270.553652,0.00010958,2]
[354252693,1740367832028,-159.980963,0.00010958,2]
[354252694,1740367832038,-270.553652,0.00010958,2]
[354252695,1740367832047,-159.980962,0.00010958,2]
[354252696,1740367832057,-270.553652,0.00010958,2]
[354252697,1740367832067,-159.980963,0.00010958,2]
[354252699,1740367832076,-270.553652,0.00010958,2]
[354252700,1740367832085,-159.980962,0.00010958,2]
[354252702,1740367832095,-270.553652,0.00010958,2]
[354252704,1740367832105,-159.980963,0.00010958,2]
[354252705,1740367832115,-270.553652,0.00010958,2]
[354252706,1740367832124,-159.544922,0.00010958,2]
[354252707,1740367832133,-159.980962,0.00010958,2]
[354252708,1740367832142,-270.553652,0.00010958,2]
[354252709,1740367832151,-300.0,0.00010999,2]
[354252710,1740367832161,-1069.57398477,0.00011,2]
[354252711,1740367832173,-460.065299,0.00011041,2]
[354252712,1740367832183,-453.402903,0.00011041,2]
[354252713,1740367832192,-460.065299,0.00011123,2]
[354252715,1740367832202,-453.402903,0.00011123,2]
[354252717,1740367832211,-460.065299,0.00011205,2]
[354252719,1740367832223,-453.402903,0.00011205,2]
[354252721,1740367832232,-460.065299,0.00011287,2]
[354252723,1740367832242,-453.402903,0.00011287,2]
[354252724,1740367832252,-460.065299,0.00011369,2]
[354252726,1740367832262,-453.402903,0.00011369,2]
[354252728,1740367832273,-352.29930943,0.00013367,2]
[354252730,1740367832283,-1608.54,0.0001371,2]
[354252732,1740367832293,-1499.86778645,0.000139,2]
[354252734,1740367832303,-44147.15767954,0.000139,2]
[354252736,1740367832312,-568.03636979,0.00014,2]
[354252740,1740367832322,-29999.99,0.00014818,2]
[354252743,1740367832332,-200.0,0.00014834,2]
[354252746,1740367832341,-185.06,0.00014834,2]
[354252749,1740367832351,-4339.96,0.00014834,2]
[354252752,1740367832361,-1502.91,0.00014849,2]
[354252755,1740367832371,-150.0,0.0001514,2]
[354252758,1740367832380,-1247.35,0.00015182,2]
[354252761,1740367832389,-1500.0,0.00015186,2]
[354252764,1740367832398,-816.04,0.00015243,2]
[354252767,1740367832408,-522.44,0.00015249,2]
[354252771,1740367832423,-1000.0,0.00015293,2]
[354252774,1740367832432,-170.0,0.00015358,2]
[354252777,1740367832442,-250.0,0.00015407,2]
[354252780,1740367832450,-23900.0,0.00015462,2]
[354252783,1740367832460,-204.09,0.00015516,2]
[354252785,1740367832469,-916.78,0.00015521,2]
[354252787,1740367832478,-1018.87,0.00015644,2]
[354252789,1740367832487,-1019.76,0.00015644,2]
[354252792,1740367832497,-981.0,0.00015644,2]
[354252795,1740367832510,-988.64,0.00015644,2]
[354252798,1740367832519,-981.44,0.00015644,2]
[354252801,1740367832530,-994.91,0.00015644,2]
[354252804,1740367832538,-1608.54,0.00015974,2]
[354252807,1740367832548,-150.0,0.00015981,2]
[354252810,1740367832557,-1281.549,0.00015999,2]
[354252813,1740367832566,-247.745,0.00015999,2]
[354252816,1740367832575,-150.0,0.00015999,2]
[354252819,1740367832585,-178.7153457,0.00016137,2]
[354252861,1740367832805,-150.4,0.00016144,2]
[354252865,1740367832832,-150.9,0.00016144,2]
[354252867,1740367832841,-151.74,0.00016144,2]
[354252869,1740367832850,-1092.0,0.000163,2]
[354252871,1740367832859,-151.76338368,0.00016338,2]
[354252873,1740367832868,-3990.947,0.00016338,2]
[354252875,1740367832877,-1000.0,0.00016338,2]
[354252877,1740367832886,-152.618221,0.0001635,2]
[354252879,1740367832897,-1059.82875748,0.0001635,2]
[354252881,1740367832906,-1099.68856221,0.0001635,2]
[354252883,1740367832916,-178.7153457,0.00016356,2]
[354252885,1740367832925,-300.0,0.000164,5]
[354252887,1740367832935,-167.69891393,0.0001642,2]
[354252889,1740367832944,-424.3607672,0.00016428,2]
[354252891,1740367832953,-180.04141742,0.00016437,2]
[354252893,1740367832962,-181.97737782,0.00016437,2]
[354252895,1740367832971,-500.0,0.00016437,2]
[354252897,1740367832980,-500.0,0.00016437,2]
[354252899,1740367832989,-475.13754491,0.00016437,2]
[354252901,1740367832999,-460.065299,0.00016438,2]
[354252903,1740367833008,-453.402903,0.00016438,2]
[354252905,1740367833017,-681.3,0.00016438,2]
[354252907,1740367833027,-500.0,0.00016438,2]
[354252909,1740367833037,-500.0,0.00016438,2]
[354252911,1740367833047,-500.0,0.00016438,2]
[354252913,1740367833057,-421.90325573,0.00016438,2]
[354252915,1740367833067,-500.0,0.00016438,2]
[354252917,1740367833077,-500.0,0.00016438,2]
[354252919,1740367833086,-503.1791625,0.00016438,2]
[354252921,1740367833095,-500.0,0.00016438,2]
[354252923,1740367833105,-500.0,0.00016438,2]
[354252925,1740367833115,-500.0,0.00016438,2]
[354252927,1740367833124,-546.8,0.00016438,2]
[354252929,1740367833133,-500.0,0.00016438,2]
[354252931,1740367833142,-500.0,0.00016438,2]
[354252933,1740367833151,-500.0,0.00016438,2]
[354252935,1740367833160,-541.09,0.00016438,2]
[354252936,1740367833172,-500.0,0.00016438,2]
[354252938,1740367833181,-500.0,0.00016438,2]
[354252941,1740367833191,-500.0,0.00016438,2]
[354252943,1740367833201,-500.0,0.00016438,2]
[354252944,1740367833210,-511.67,0.00016438,2]
[354252947,1740367833219,-500.0,0.00016438,2]
[354252948,1740367833229,-500.0,0.00016438,2]
[354252950,1740367833241,-500.0,0.00016438,2]
[354252952,1740367833251,-500.0,0.00016438,2]
[354252954,1740367833260,-500.0,0.00016438,2]
[354252956,1740367833269,-500.0,0.00016438,2]
[354252958,1740367833279,-500.0,0.00016438,2]
[354252960,1740367833288,-500.0,0.00016438,7]
[354252961,1740367833298,-500.0,0.00016438,2]
[354252963,1740367833308,-500.0,0.00016438,2]
[354252965,1740367833317,-500.0,0.00016438,2]
[354252967,1740367833328,-500.0,0.00016438,2]
[354252969,1740367833338,-500.0,0.00016438,2]
[354252971,1740367833347,-500.0,0.00016438,2]
[354252972,1740367833357,-419.066311,0.00016438,2]
[354252974,1740367833367,-541.21331098,0.00016438,2]
[354252976,1740367833376,-353.73374089,0.00016438,2]
[354252978,1740367833386,-500.0,0.00016438,2]
[354252980,1740367833396,-500.0,0.00016438,2]
[354252981,1740367833405,-500.0,0.00016438,2]
[354252983,1740367833417,-500.0,0.00016438,2]
[354252985,1740367833427,-500.0,0.00016438,2]
[354252987,1740367833437,-500.0,0.00016438,2]
[354252989,1740367833447,-500.0,0.00016438,2]
[354252990,1740367833456,-500.0,0.00016438,2]
[354252992,1740367833466,-500.0,0.00016438,2]
[354252994,1740367833476,-500.0,0.00016438,2]
[354252996,1740367833486,-500.0,0.00016438,2]
[354252997,1740367833496,-500.0,0.00016438,2]
[354252999,1740367833507,-500.0,0.00016438,2]
[354253001,1740367833517,-500.0,0.00016438,2]
[354253003,1740367833528,-513.49,0.00016438,2]
[354253005,1740367833538,-500.0,0.00016438,2]
[354253007,1740367833549,-575.92,0.00016438,2]
[354253008,1740367833558,-500.0,0.00016438,2]
[354253010,1740367833568,-500.0,0.00016438,2]
[354253012,1740367833578,-500.0,0.00016438,2]
[354253014,1740367833588,-864.24,0.00016438,2]
[354253016,1740367833598,-337.26851467,0.00016438,2]
[354253017,1740367833609,-500.0,0.00016438,2]
[354253019,1740367833620,-500.0,0.00016438,2]
[354253021,1740367833630,-500.0,0.00016438,2]
[354253023,1740367833640,-500.0,0.00016438,2]
[354253025,1740367833650,-500.0,0.00016438,2]
[354253027,1740367833659,-565.54,0.00016438,2]
[354253029,1740367833673,-500.0,0.00016438,2]
[354253031,1740367833683,-500.0,0.00016438,2]
[354253032,1740367833692,-588.8038936,0.00016438,2]
[354253034,1740367833701,-502.73888805,0.00016438,2]
[354253036,1740367833711,-500.0,0.00016438,2]
[354253038,1740367833721,-500.0,0.00016438,2]
[354253040,1740367833731,-517.28,0.00016438,2]
[354253041,1740367833741,-500.0,0.00016438,2]
[354253043,1740367833750,-500.0,0.00016438,2]
[354253045,1740367833760,-500.0,0.00016438,2]
[354253047,1740367833770,-500.0,0.00016438,2]
[354253048,1740367833779,-500.0,0.00016438,2]
[354253050,1740367833789,-1492.77,0.00016438,2]
[354253052,1740367833798,-500.0,0.00016438,2]
[354253054,1740367833807,-500.0,0.00016438,2]
[354253055,1740367833817,-500.0,0.00016438,2]
[354253057,1740367833826,-500.0,0.00016438,2]
[354253059,1740367833836,-500.0,0.00016438,2]
[354253061,1740367833845,-500.0,0.00016438,2]
[354253063,1740367833855,-500.0,0.00016438,2]
[354253065,1740367833864,-500.0,0.00016438,2]
[354253066,1740367833874,-500.0,0.00016438,2]
[354253068,1740367833883,-500.0,0.00016438,2]
[354253070,1740367833894,-490.0,0.00016438,2]
[354253072,1740367833904,-500.0,0.00016438,2]
[354253074,1740367833916,-500.0,0.00016438,2]
[354253076,1740367833927,-500.0,0.00016438,2]
[354253078,1740367833937,-501.16151782,0.00016438,2]
[354253080,1740367833947,-500.0,0.00016438,2]
[354253081,1740367833957,-1336.54,0.00016438,2]
[354253083,1740367833966,-504.34542212,0.00016438,2]
[354253085,1740367833976,-500.0,0.00016438,2]
[354253087,1740367833986,-840.26,0.00016438,2]
[354253089,1740367833995,-500.0,0.00016438,2]
[354253091,1740367834004,-500.0,0.00016438,2]
[354253092,1740367834014,-500.0,0.00016438,2]
[354253094,1740367834023,-500.0,0.00016438,2]
[354253096,1740367834032,-500.0,0.00016438,2]
[354253098,1740367834041,-500.0,0.00016438,2]
[354253100,1740367834051,-500.0,0.00016438,2]
[354253102,1740367834061,-500.0,0.00016438,2]
[354253104,1740367834071,-500.0,0.00016438,2]
[354253106,1740367834080,-512.78,0.00016438,2]
[354253108,1740367834089,-500.0,0.00016438,2]
[354253109,1740367834098,-624.24,0.00016438,2]
[354253111,1740367834108,-1064.74,0.00016438,2]
[354253113,1740367834117,-1343.22,0.00016438,2]
[354253115,1740367834128,-1110.44,0.00016438,2]
[354253117,1740367834138,-512.37877834,0.00016438,2]
[354253119,1740367834148,-1000.0,0.00016438,2]
[354253121,1740367834157,-655.83,0.00016438,2]
[354253123,1740367834168,-589.29,0.00016438,2]
[354253125,1740367834177,-500.0,0.00016438,2]
[354253127,1740367834187,-500.0,0.00016438,2]
[354253129,1740367834196,-501.65987136,0.00016438,2]
[354253130,1740367834206,-500.0,0.00016438,2]
[354253132,1740367834215,-500.0,0.00016438,2]
[354253134,1740367834227,-500.0,0.00016438,2]
[354253136,1740367834236,-501.22225715,0.00016438,2]
[354253138,1740367834248,-580.16919119,0.00016438,2]
[354253140,1740367834258,-500.0,0.00016438,2]
[354253142,1740367834269,-738.69,0.00016438,2]
[354253144,1740367834278,-500.0,0.00016438,2]
[354253146,1740367834287,-1205.53,0.00016438,2]
[354253148,1740367834296,-500.0,0.00016438,2]
[354253149,1740367834307,-500.0,0.00016438,2]
[354253151,1740367834317,-579.69865365,0.00016438,2]
[354253153,1740367834328,-1085.08,0.00016438,2]
[354253155,1740367834337,-633.22,0.00016438,2]
[354253157,1740367834346,-1763.42,0.00016438,2]
[354253159,1740367834356,-813.3,0.00016438,2]
[354253161,1740367834365,-500.0,0.00016438,2]
[354253163,1740367834375,-500.0,0.00016438,2]
[354253164,1740367834385,-500.0,0.00016438,2]
[354253166,1740367834394,-587.77,0.00016438,2]
[354253168,1740367834404,-500.0,0.00016438,2]
[354253170,1740367834415,-1384.7,0.00016438,2]
[354253172,1740367834426,-503.34720327,0.00016438,2]
[354253174,1740367834435,-500.0,0.00016438,2]
[354253176,1740367834445,-500.0,0.00016438,2]
[354253177,1740367834455,-500.0,0.00016438,2]
[354253179,1740367834465,-838.89,0.00016438,2]
[354253181,1740367834476,-925.65,0.00016438,2]
[354253183,1740367834486,-839.92,0.00016438,2]
[354253185,1740367834496,-1094.4,0.00016438,2]
[354253187,1740367834506,-500.0,0.00016438,2]
[354253189,1740367834516,-500.0,0.00016438,2]
[354253190,1740367834525,-500.0,0.00016438,2]
[354253192,1740367834535,-500.0,0.00016438,2]
[354253194,1740367834544,-1236.56,0.00016438,2]
[354253195,1740367834553,-1377.96,0.00016438,2]
[354253196,1740367834562,-500.0,0.00016438,2]
[354253197,1740367834571,-851.49,0.00016438,2]
[354253198,1740367834580,-500.0,0.00016438,2]
[354253199,1740367834590,-500.0,0.00016438,2]
[354253200,1740367834598,-166.16086631,0.00016438,2]
[354253201,1740367834607,-502.49691533,0.00016438,2]
[354253202,1740367834616,-500.0,0.00016438,2]
[354253203,1740367834625,-701.56,0.00016438,2]
[354253204,1740367834634,-500.0,0.00016438,2]
[354253205,1740367834643,-881.22,0.00016438,2]
[354253206,1740367834652,-584.82,0.00016438,2]
[354253207,1740367834662,-500.0,0.00016438,2]
[354253209,1740367834673,-500.0,0.00016438,2]
[354253211,1740367834682,-1111.19,0.00016438,2]
[354253213,1740367834691,-1202.55,0.00016438,2]
[354253215,1740367834700,-500.0,0.00016438,2]
[354253217,1740367834709,-501.58384265,0.00016438,2]
[354253219,1740367834718,-503.04586769,0.00016438,2]
[354253221,1740367834728,-502.3925736,0.00016438,2]
[354253223,1740367834737,-744.67,0.00016438,2]
[354253225,1740367834747,-628.37,0.00016438,2]
[354253227,1740367834756,-500.0,0.00016438,2]
[354253229,1740367834765,-500.0,0.00016438,2]
[354253231,1740367834774,-1000.38,0.00016438,2]
[354253232,1740367834783,-501.73058748,0.00016438,2]
[354253234,1740367834792,-684.89,0.00016438,2]
[354253236,1740367834801,-500.0,0.00016438,2]
[354253239,1740367834810,-502.91175263,0.00016438,2]
[354253241,1740367834820,-500.0,0.00016438,2]
[354253243,1740367834829,-500.0,0.00016438,2]
[354253245,1740367834838,-502.58856325,0.00016438,2]
[354253247,1740367834847,-1388.05,0.00016438,2]
[354253248,1740367834856,-548.9,0.00016438,2]
[354253250,1740367834865,-500.0,0.00016438,2]
[354253253,1740367834875,-279.50081503,0.00016438,2]